bitfinex-derivatives/quotes_BTCF0:USTF0_20220103
["timestamp","ask_amount","ask_price","bid_price","bid_amount"]
[1641193518301,0.20872567,46873.0,46869.0,0.02]
[1641193519003,0.38672567,46873.0,46869.0,0.194]
[1641193520006,0.09073623,46872.0,46871.0,0.60482445]
[1641193520707,0.91421505,46872.0,46869.0,0.02]
[1641193520906,1.09321505,46872.0,46871.0,0.174]
[1641193522106,0.91421505,46872.0,46869.0,0.02]
[1641193522306,0.97327505,46872.0,46869.0,0.02]
[1641193523009,1.15527505,46872.0,46869.0,0.198]
[1641193523809,0.91421505,46871.0,46869.0,0.198]
[1641193524207,0.91421505,46871.0,46869.0,0.02]
[1641193525008,1.09421505,46871.0,46869.0,0.195]
[1641193525207,0.18,46870.0,46869.0,0.195]
[1641193525407,0.18,46870.0,46869.0,0.19542665]
[1641193525612,0.27073623,46871.0,46869.0,0.19542665]
[1641193525810,0.27073623,46871.0,46869.0,0.195]
[1641193526211,0.18,46870.0,46869.0,0.02]
[1641193526411,0.27073623,46871.0,46869.0,0.02042665]
[1641193526610,0.27073623,46871.0,46869.0,0.02]
[1641193526810,0.09073623,46870.0,46869.0,0.02]
[1641193527010,0.09073623,46870.0,46869.0,0.18742665]
[1641193528214,0.09073623,46870.0,46869.0,0.02042665]
[1641193529016,0.27273623,46870.0,46869.0,0.19742665]
[1641193529215,0.182,46870.0,46869.0,0.19742665]
[1641193530215,0.91453791,46870.0,46869.0,0.16076232]
[1641193530415,0.90403791,46870.0,46869.0,0.16076232]
[1641193530618,0.90403791,46870.0,46869.0,0.17285753]
[1641193530917,0.82380168,46870.0,46869.0,0.36985753]
[1641193531115,1.41634737,46879.0,46869.0,0.36985753]
[1641193531317,0.35351409,46871.0,46869.0,0.97425533]
[1641193531717,0.35351409,46871.0,46870.0,0.01209521]
[1641193532315,0.35351409,46872.0,46870.0,0.79788399]
[1641193532515,0.35351409,46872.0,46871.0,0.18096433]
[1641193533314,0.35351409,46872.0,46870.0,0.80482445]
[1641193534818,0.07166,46879.0,46870.0,0.80482445]
[1641193535018,0.18,46880.0,46870.0,0.79682445]
[1641193535219,0.02134026,46880.0,46870.0,0.192]
[1641193535418,0.18,46879.0,46870.0,0.192]
[1641193535622,0.02134026,46880.0,46870.0,0.192]
[1641193536420,0.20134026,46880.0,46870.0,0.192]
[1641193537020,0.20134026,46880.0,46870.0,0.186]
[1641193537724,0.18,46875.0,46870.0,0.186]
[1641193537924,0.18,46874.0,46870.0,0.186]
[1641193538324,0.32033567,46874.0,46869.0,0.02]
[1641193538927,0.32033567,46874.0,46869.0,0.205]
[1641193539627,0.82376816,46870.0,46869.0,0.205]
[1641193539826,0.82376816,46870.0,46869.0,0.20542661]
[1641193540327,0.32033567,46874.0,46869.0,0.02042661]
[1641193540526,0.32033567,46874.0,46869.0,0.02]
[1641193540927,0.32033567,46874.0,46869.0,0.205]
[1641193542031,0.14033567,46874.0,46869.0,0.40633758]
[1641193542627,0.14033567,46874.0,46869.0,0.385]
[1641193542828,0.14033567,46874.0,46870.0,0.02133682]
[1641193543531,0.82405376,46871.0,46870.0,0.24380069]
[1641193544451,0.82405376,46873.0,46870.0,0.24380069]
[1641193544844,0.82405376,46873.0,46870.0,0.42380069]
[1641193545044,0.82405376,46873.0,46870.0,0.43480069]
[1641193546253,0.82405376,46873.0,46870.0,0.61480069]
[1641193546454,0.91478278,46873.0,46870.0,0.42380069]
[1641193547149,0.91478278,46873.0,46870.0,0.43580069]
[1641193547348,0.91478278,46873.0,46870.0,0.61580069]
[1641193547550,0.91478278,46873.0,46870.0,0.43580069]
[1641193547751,1.41634737,46882.0,46872.0,0.00096433]
[1641193547951,0.20133346,46895.0,46875.0,0.18]
[1641193548156,1.3075,46889.0,46877.0,0.2624353]
[1641193548356,0.20133346,46895.0,46885.0,0.14033567]
[1641193548357,0.81422007,46888.0,46885.0,0.14033567]
[1641193550153,0.18,46892.0,46885.0,0.14033567]
[1641193550361,0.18,46891.0,46885.0,0.14033567]
[1641193550558,0.18,46888.0,46885.0,0.14033567]
[1641193550755,0.08062711,46894.0,46885.0,0.14033567]
[1641193551755,0.18,46888.0,46885.0,0.14033567]
[1641193552356,0.02133788,46886.0,46881.0,0.14033567]
[1641193552554,0.18,46882.0,46881.0,0.14033567]
[1641193553766,0.18,46882.0,46873.0,0.36261871]
[1641193553966,0.18,46882.0,46870.0,0.58508258]
[1641193554460,0.18,46882.0,46873.0,0.14033567]
[1641193554658,0.18,46879.0,46873.0,0.14033567]
[1641193555158,0.18,46879.0,46873.0,0.28133567]
[1641193555658,1.41332379,46880.0,46873.0,0.28133567]
[1641193555860,1.41332379,46881.0,46873.0,0.28133567]
[1641193556358,1.41332379,46881.0,46873.0,0.14033567]
[1641193556560,0.18,46880.0,46873.0,0.14033567]
[1641193556961,1.59332379,46880.0,46873.0,0.14033567]
[1641193557158,0.02134114,46879.0,46873.0,0.14033567]
[1641193557358,0.18,46877.0,46873.0,0.14033567]
[1641193558661,0.18,46874.0,46873.0,0.14033567]
[1641193558867,0.20743,46874.0,46873.0,0.14033567]
[1641193559068,0.26743,46874.0,46873.0,0.30133567]
[1641193559667,0.08743,46874.0,46873.0,0.30133567]
[1641193560364,0.08743,46874.0,46873.0,0.14033567]
[1641193561069,0.27143,46874.0,46873.0,0.31833567]
[1641193562368,0.08743,46874.0,46873.0,0.14033567]
[1641193562566,0.18,46877.0,46873.0,0.14033567]
[1641193562767,1.43466493,46879.0,46873.0,0.14033567]
[1641193563068,0.345,46877.0,46873.0,0.30133567]
[1641193563980,0.165,46877.0,46873.0,0.30133567]
[1641193564183,0.345,46877.0,46873.0,0.30133567]
[1641193564375,0.09073238,46876.0,46873.0,0.14033567]
[1641193565279,0.26573238,46876.0,46873.0,0.30633567]
[1641193565678,0.26573238,46876.0,46873.0,0.48633567]
[1641193566078,0.03777856,46876.0,46873.0,0.48633567]
[1641193566279,0.09072929,46875.0,46874.0,0.36261871]
[1641193566578,0.09072929,46875.0,46874.0,0.82157938]
[1641193567179,0.09072929,46875.0,46874.0,1.01857938]
[1641193567379,0.09072929,46875.0,46874.0,0.65596067]
[1641193567679,0.09072929,46875.0,46874.0,1.26078512]
[1641193568180,1.41332379,46879.0,46874.0,1.26078512]
[1641193568780,1.41332379,46879.0,46874.0,0.94216012]
[1641193568981,1.41332379,46879.0,46874.0,0.74516012]
[1641193569181,1.41332379,46879.0,46876.0,0.36283989]
[1641193570483,1.41332379,46879.0,46875.0,0.36283989]
[1641193571187,1.41332379,46879.0,46875.0,0.55583989]
[1641193571388,1.41332379,46878.0,46875.0,0.55583989]
[1641193572485,1.41332379,46878.0,46875.0,0.36283989]
[1641193573086,1.41332379,46878.0,46875.0,0.55683989]
[1641193574587,1.41332379,46878.0,46875.0,0.36283989]
[1641193575089,1.41332379,46878.0,46875.0,0.55683989]
[1641193576490,1.41332379,46878.0,46875.0,0.36283989]
[1641193577092,1.41332379,46878.0,46875.0,0.55683989]
[1641193577293,1.41332379,46878.0,46875.0,0.194]
[1641193578405,1.41332379,46878.0,46874.0,0.50317556]
[1641193579100,1.41332379,46878.0,46874.0,0.69717556]
[1641193580602,1.41332379,46878.0,46874.0,0.50317556]
[1641193581203,1.41332379,46878.0,46874.0,0.69717556]
[1641193582504,1.41332379,46878.0,46874.0,0.50317556]
[1641193582711,1.41332379,46879.0,46875.0,0.36283989]
[1641193584212,1.41332379,46879.0,46876.0,0.10400126]
[1641193584611,1.41332379,46878.0,46876.0,0.10400126]
[1641193585223,1.41332379,46878.0,46876.0,0.29900126]
[1641193585410,1.30207549,46878.0,46876.0,0.195]
[1641193586421,1.30207549,46878.0,46875.0,0.36283989]
[1641193587315,1.30207549,46878.0,46875.0,0.55683989]
[1641193587513,0.09071132,46885.0,46875.0,0.55683989]
[1641193588113,0.18,46884.0,46875.0,0.55683989]
[1641193588513,0.18,46884.0,46875.0,0.36283989]
[1641193588914,0.18,46884.0,46880.0,0.14033567]
[1641193589913,0.09071132,46883.0,46880.0,0.14033567]
[1641193591322,0.09071132,46883.0,46880.0,0.33233567]
[1641193592520,0.09071132,46883.0,46880.0,0.14033567]
[1641193593220,0.09071132,46883.0,46880.0,0.33233567]
[1641193594422,0.09071132,46883.0,46880.0,0.14033567]
[1641193595120,0.09071132,46883.0,46880.0,0.33333567]
[1641193596424,0.09071132,46883.0,46880.0,0.14033567]
[1641193597123,0.09071132,46883.0,46880.0,0.33233567]
[1641193598629,0.09071132,46883.0,46880.0,0.14033567]
[1641193599238,0.09071132,46883.0,46880.0,0.33333567]
[1641193600132,0.09071132,46885.0,46880.0,0.33333567]
[1641193601231,0.09071132,46885.0,46880.0,0.52433567]
[1641193602636,0.09071132,46885.0,46880.0,0.14033567]
[1641193603037,0.18,46886.0,46880.0,0.14033567]
[1641193603242,0.09071132,46887.0,46880.0,0.32933567]
[1641193603652,0.09071132,46887.0,46881.0,0.30075063]
[1641193604050,0.09071132,46885.0,46881.0,0.30075063]
[1641193605250,0.09071132,46885.0,46881.0,0.49075063]
[1641193605450,0.18,46889.0,46881.0,0.49075063]
[1641193606051,0.09071132,46888.0,46881.0,0.49075063]
[1641193606650,0.09071132,46888.0,46881.0,0.30075063]
[1641193607250,0.09071132,46888.0,46881.0,0.49275063]
[1641193608556,0.09071132,46888.0,46881.0,0.30075063]
[1641193608754,0.18,46889.0,46881.0,0.30075063]
[1641193608956,0.18,46889.0,46885.0,0.14033567]
[1641193609656,0.09071132,46888.0,46885.0,0.14033567]
[1641193610857,0.27071132,46888.0,46885.0,0.14033567]
[1641193611256,0.27071132,46888.0,46885.0,0.32533567]
[1641193611466,0.09071132,46887.0,46885.0,0.32533567]
[1641193614560,0.09071132,46887.0,46885.0,0.14033567]
[1641193615259,0.09071132,46887.0,46885.0,0.32533567]
[1641193616561,0.09071132,46887.0,46885.0,0.14033567]
[1641193617163,0.09071132,46887.0,46885.0,0.32533567]
[1641193618462,0.09071132,46887.0,46885.0,0.14033567]
[1641193619263,0.09071132,46887.0,46885.0,0.32633567]
[1641193620465,0.09071132,46887.0,46885.0,0.14033567]
[1641193620766,0.09071132,46888.0,46885.0,0.14033567]
[1641193621365,0.09071132,46888.0,46885.0,0.32633567]
[1641193621570,0.09071132,46886.0,46885.0,0.32633567]
[1641193622166,0.15534132,46886.0,46885.0,0.32633567]
[1641193622366,0.06463,46886.0,46885.0,0.32633567]
[1641193622567,0.06463,46886.0,46885.0,0.14033567]
[1641193623369,0.15534132,46886.0,46885.0,0.32733567]
[1641193624667,0.15534132,46886.0,46885.0,0.14033567]
[1641193625367,0.15534132,46886.0,46885.0,0.32533567]
[1641193626670,0.15534132,46886.0,46885.0,0.14033567]
[1641193627369,0.15534132,46886.0,46885.0,0.32633567]
[1641193628571,0.15534132,46886.0,46885.0,0.14033567]
[1641193629270,0.15534132,46886.0,46885.0,0.32533567]
[1641193630575,0.15534132,46886.0,46885.0,0.14033567]
[1641193631276,0.15534132,46886.0,46885.0,0.32533567]
[1641193632584,0.15534132,46886.0,46885.0,0.14033567]
[1641193633279,0.15534132,46886.0,46885.0,0.32633567]
[1641193634584,0.15534132,46886.0,46885.0,0.14033567]
[1641193635281,0.15534132,46886.0,46885.0,0.32833567]
[1641193636684,0.15534132,46886.0,46885.0,0.14033567]
[1641193637287,0.15534132,46886.0,46885.0,0.32533567]
[1641193638690,0.15534132,46886.0,46885.0,0.14033567]
[1641193639293,0.15534132,46886.0,46885.0,0.32533567]
[1641193640594,0.15534132,46886.0,46885.0,0.14033567]
[1641193641294,0.15534132,46886.0,46885.0,0.32433567]
[1641193642599,0.15534132,46886.0,46885.0,0.14033567]
[1641193643400,0.15534132,46886.0,46885.0,0.32433567]
[1641193644598,0.15534132,46886.0,46885.0,0.14033567]
[1641193645309,0.15534132,46886.0,46885.0,0.32433567]
[1641193648812,0.15534132,46886.0,46885.0,0.14033567]
[1641193649413,0.15534132,46886.0,46885.0,0.32433567]
[1641193650715,0.15534132,46886.0,46885.0,0.14033567]
[1641193651414,0.15534132,46886.0,46885.0,0.32533567]
[1641193652714,0.15534132,46886.0,46885.0,0.14033567]
[1641193653316,0.15534132,46886.0,46885.0,0.32833567]
[1641193653516,0.09071132,46886.0,46885.0,0.32833567]
[1641193654618,0.09071132,46889.0,46885.0,0.14033567]
[1641193655219,0.27071132,46889.0,46885.0,0.14033567]
[1641193655520,0.09071132,46889.0,46885.0,0.32533567]
[1641193655924,0.27071132,46889.0,46885.0,0.32533567]
[1641193656520,0.09071132,46889.0,46885.0,0.32533567]
[1641193656720,0.09071132,46888.0,46885.0,0.14033567]
[1641193657321,0.09071132,46889.0,46885.0,0.32633567]
[1641193658626,0.09071132,46889.0,46885.0,0.14033567]
[1641193658826,0.27071132,46889.0,46885.0,0.14033567]
[1641193659326,0.27071132,46889.0,46885.0,0.32633567]
[1641193659526,0.09071132,46889.0,46885.0,0.32633567]
[1641193659727,0.09071132,46888.0,46885.0,0.32633567]
[1641193660628,0.09071132,46888.0,46885.0,0.14033567]
[1641193661328,0.09071132,46888.0,46885.0,0.32633567]
[1641193661726,0.27071132,46889.0,46885.0,0.32633567]
[1641193662227,0.02133584,46890.0,46885.0,0.32633567]
[1641193662228,0.09071132,46888.0,46885.0,0.32633567]
[1641193662827,0.09071132,46888.0,46885.0,0.14033567]
[1641193663228,0.09071132,46889.0,46885.0,0.14033567]
[1641193663429,0.09071132,46889.0,46885.0,0.32533567]
[1641193664730,0.09071132,46889.0,46885.0,0.14033567]
[1641193665332,0.09071132,46889.0,46885.0,0.32433567]
[1641193666740,0.09071132,46889.0,46885.0,0.14033567]
[1641193667536,0.09071132,46889.0,46885.0,0.32433567]
[1641193668742,0.09071132,46889.0,46885.0,0.14033567]
[1641193669351,0.09071132,46889.0,46885.0,0.32433567]
[1641193669747,0.09071132,46889.0,46885.0,0.184]
[1641193670147,0.09071132,46889.0,46885.0,0.32433567]
[1641193670347,0.20133584,46890.0,46885.0,0.32433567]
[1641193670953,0.02133584,46890.0,46885.0,0.14033567]
[1641193671165,0.20133584,46890.0,46885.0,0.14033567]
[1641193671360,0.09070309,46889.0,46885.0,0.32533567]
[1641193672959,0.09070309,46889.0,46885.0,0.14033567]
[1641193673461,0.09070309,46889.0,46885.0,0.32733567]
[1641193674661,0.09070309,46889.0,46885.0,0.14033567]
[1641193675362,0.09070309,46889.0,46885.0,0.32533567]
[1641193676863,0.09070309,46889.0,46885.0,0.14033567]
[1641193677363,0.09070309,46889.0,46885.0,0.32633567]
[1641193678766,0.09070309,46892.0,46885.0,0.14033567]
[1641193679366,0.09070309,46892.0,46885.0,0.32533567]
[1641193679967,0.27070309,46892.0,46885.0,0.32533567]
[1641193680167,0.09070309,46892.0,46885.0,0.32533567]
[1641193680669,0.09070309,46891.0,46885.0,0.32533567]
[1641193680967,0.09070309,46891.0,46885.0,0.14033567]
[1641193681370,0.09070309,46892.0,46885.0,0.32633567]
[1641193682668,0.09070309,46892.0,46885.0,0.14033567]
[1641193683369,0.09070309,46892.0,46885.0,0.32433567]
[1641193685373,0.09070309,46892.0,46885.0,0.32533567]
[1641193686674,0.09070309,46892.0,46885.0,0.14033567]
[1641193687477,0.09070309,46892.0,46885.0,0.32533567]
[1641193688780,0.09070309,46892.0,46885.0,0.14033567]
[1641193689380,0.09070309,46892.0,46885.0,0.32533567]
[1641193690684,0.09070309,46892.0,46885.0,0.14033567]
[1641193691387,0.09070309,46892.0,46885.0,0.32733567]
[1641193692895,0.09070309,46892.0,46885.0,0.14033567]
[1641193693497,0.09070309,46892.0,46885.0,0.32733567]
[1641193694789,0.09070309,46892.0,46885.0,0.14033567]
[1641193694992,0.16166714,46900.0,46889.0,0.18]
[1641193695190,0.09070334,46894.0,46893.0,0.18]
[1641193695390,1.68550989,46900.0,46893.0,0.18096433]
[1641193695590,1.68550989,46900.0,46894.0,0.42649287]
[1641193695996,1.68550989,46900.0,46897.0,0.18]
[1641193696200,1.68550989,46900.0,46897.0,0.2574]
[1641193696393,1.68550989,46900.0,46899.0,0.28067134]
[1641193696594,1.68550989,46907.0,46899.0,0.28067134]
[1641193696794,1.68550989,46907.0,46900.0,0.009794]
[1641193696993,1.68550989,46907.0,46900.0,0.43623052]
[1641193697416,1.68550989,46907.0,46900.0,0.62623052]
[1641193698096,0.02132764,46908.0,46900.0,0.62623052]
[1641193698296,0.02132764,46908.0,46904.0,0.14033567]
[1641193699496,0.02132764,46908.0,46904.0,0.19]
[1641193700196,1.42144608,46905.0,46904.0,0.19]
[1641193700795,1.42144608,46905.0,46900.0,0.43623052]
[1641193701395,1.42144608,46905.0,46900.0,0.62723052]
[1641193701596,1.42144608,46905.0,46901.0,0.42642428]
[1641193703197,1.42144608,46905.0,46902.0,0.320656]
[1641193703399,1.42144608,46905.0,46901.0,0.61742428]
[1641193704799,1.42144608,46905.0,46901.0,0.42642428]
[1641193705400,1.42144608,46905.0,46901.0,0.61742428]
[1641193705401,1.48799608,46905.0,46901.0,0.61742428]
[1641193705602,1.48799608,46905.0,46901.0,0.191]
[1641193706000,0.18,46903.0,46901.0,0.191]
[1641193706200,0.18,46902.0,46901.0,0.191]
[1641193706601,0.02133003,46903.0,46901.0,0.191]
[1641193706903,0.18,46902.0,46901.0,0.191]
[1641193707300,0.18,46902.0,46899.0,0.14033567]
[1641193707500,0.18,46902.0,46894.0,0.14033567]
[1641193708104,0.18,46901.0,46894.0,0.14033567]
[1641193708301,0.14033567,46900.0,46890.0,0.14033567]
[1641193709305,1.42148218,46897.0,46890.0,0.14033567]
[1641193709504,1.42148218,46897.0,46890.0,0.31833567]
[1641193710705,1.42148218,46897.0,46891.0,0.320666]
[1641193711102,1.42148218,46897.0,46890.0,0.14033567]
[1641193711505,0.181,46897.0,46891.0,0.18]
[1641193711802,0.181,46897.0,46891.0,0.678]
[1641193712003,0.181,46897.0,46894.0,0.21398693]
[1641193712606,0.0907155,46896.0,46894.0,0.21398693]
[1641193713407,1.56181785,46900.0,46896.0,0.12926272]
[1641193713616,1.56181785,46900.0,46894.0,0.40098693]
[1641193713808,1.56181785,46900.0,46894.0,0.187]
[1641193714008,0.14033567,46900.0,46894.0,0.367]
[1641193714408,0.14033567,46900.0,46895.0,0.320409]
[1641193714609,0.14033567,46900.0,46894.0,0.187]
[1641193715408,0.31233567,46900.0,46894.0,0.187]
[1641193716011,1.73381785,46900.0,46894.0,0.187]
[1641193716409,1.73381785,46900.0,46894.0,0.367]
[1641193716913,1.56181785,46900.0,46894.0,0.18]
[1641193717409,1.73681785,46900.0,46894.0,0.184]
[1641193717609,0.31533567,46900.0,46894.0,0.184]
[1641193718913,0.14033567,46900.0,46895.0,0.31449717]
[1641193719414,0.32233567,46900.0,46895.0,0.49549717]
[1641193721627,0.32133567,46900.0,46895.0,0.49549717]
[1641193722727,0.14033567,46900.0,46895.0,0.31449717]
[1641193723531,0.32133567,46900.0,46895.0,0.49549717]
[1641193724531,0.38511567,46900.0,46895.0,0.181]
[1641193725933,0.38511567,46900.0,46895.0,0.176]
[1641193726142,0.32133567,46900.0,46895.0,0.176]
[1641193726934,0.14033567,46900.0,46893.0,0.1620168]
[1641193727435,0.31933567,46900.0,46893.0,0.3440168]
[1641193727935,0.31933567,46900.0,46899.0,0.16799392]
[1641193728736,0.14033567,46900.0,46899.0,0.16799392]
[1641193728937,0.23104177,46900.0,46899.0,0.16799392]
[1641193729437,0.41104177,46900.0,46899.0,0.35199392]
[1641193730940,0.23104177,46900.0,46899.0,0.16799392]
[1641193731540,0.23104177,46900.0,46899.0,0.34899392]
[1641193731541,0.38004177,46900.0,46899.0,0.34899392]
[1641193732639,0.38004177,46900.0,46894.0,0.009794]
[1641193732839,0.23104177,46900.0,46894.0,0.009794]
[1641193733438,0.33404177,46900.0,46895.0,0.321333]
[1641193733739,0.0907061,46899.0,46895.0,0.321333]
[1641193734939,1.42310289,46897.0,46894.0,0.009794]
[1641193735439,1.53010289,46897.0,46894.0,0.198794]
[1641193735940,1.42310289,46896.0,46894.0,0.198794]
[1641193736546,1.51380899,46896.0,46894.0,0.198794]
[1641193736744,1.51380899,46896.0,46894.0,0.009794]
[1641193737442,1.51380899,46896.0,46894.0,0.199794]
[1641193738342,1.42310289,46896.0,46894.0,0.199794]
[1641193738743,1.42310289,46896.0,46894.0,0.009794]
[1641193739443,1.42310289,46896.0,46894.0,0.199794]
[1641193740348,1.42310289,46896.0,46894.0,0.19]
[1641193740750,1.42310289,46896.0,46893.0,0.20161771]
[1641193740950,1.22010135,46896.0,46894.0,0.24363062]
[1641193741349,1.22010135,46896.0,46894.0,0.56432662]
[1641193741549,1.22010135,46896.0,46894.0,0.75432662]
[1641193741753,0.0907061,46899.0,46894.0,0.75432662]
[1641193742352,0.0907061,46899.0,46894.0,0.43363062]
[1641193742852,0.0907061,46899.0,46894.0,0.24363062]
[1641193743352,0.0907061,46899.0,46893.0,0.52159594]
[1641193743652,0.1877061,46899.0,46895.0,0.319872]
[1641193743852,0.1877061,46899.0,46894.0,0.509588]
[1641193744054,0.1877061,46899.0,46895.0,0.318503]
[1641193744854,0.0907061,46898.0,46895.0,0.318503]
[1641193745254,0.0907061,46898.0,46894.0,0.318107]
[1641193745464,0.2007061,46898.0,46895.0,0.189]
[1641193745655,0.11,46898.0,46895.0,0.189]
[1641193745854,0.11,46898.0,46896.0,0.317047]
[1641193746455,1.53375708,46898.0,46896.0,0.317047]
[1641193746656,0.0907061,46897.0,46896.0,0.317047]
[1641193747558,0.2287061,46897.0,46896.0,0.506047]
[1641193747756,0.2287061,46897.0,46896.0,0.189]
[1641193747956,0.138,46897.0,46896.0,0.189]
[1641193748858,1.42375708,46898.0,46893.0,0.52159594]
[1641193749058,0.0907061,46897.0,46893.0,0.52159594]
[1641193749558,0.0907061,46897.0,46893.0,0.70759594]
[1641193749861,1.42375708,46897.0,46893.0,0.70759594]
[1641193750861,1.42375708,46897.0,46893.0,0.52159594]
[1641193751060,1.42375708,46897.0,46893.0,0.51180194]
[1641193751460,0.0907061,46896.0,46893.0,0.51180194]
[1641193751863,0.0907061,46896.0,46893.0,1.31180194]
[1641193752160,0.0907061,46896.0,46894.0,0.499144]
[1641193753361,0.0907061,46896.0,46894.0,0.319144]
[1641193753563,0.0907061,46896.0,46894.0,0.509144]
[1641193753762,0.0907061,46899.0,46894.0,0.509144]
[1641193753961,0.0907061,46899.0,46894.0,0.689144]
[1641193754564,0.0907061,46899.0,46894.0,0.509144]
[1641193754763,0.0907061,46899.0,46894.0,0.689144]
[1641193755667,0.2537061,46899.0,46894.0,0.685144]
[1641193755867,0.2537061,46899.0,46894.0,0.505144]
[1641193756068,0.2537061,46899.0,46894.0,0.685144]
[1641193756267,0.0907061,46898.0,46894.0,0.685144]
[1641193756666,0.0907061,46898.0,46894.0,0.505144]
[1641193756870,0.0907061,46898.0,46894.0,0.319144]
[1641193757471,0.2437061,46898.0,46894.0,0.506144]
[1641193758272,0.153,46898.0,46894.0,0.506144]
[1641193758771,0.0907061,46897.0,46894.0,0.319144]
[1641193759474,0.154,46897.0,46894.0,0.507144]
[1641193760574,0.0907061,46896.0,46894.0,0.507144]
[1641193760776,0.0907061,46896.0,46894.0,0.319144]
[1641193761585,0.0907061,46896.0,46894.0,0.508144]
[1641193762181,0.0907061,46899.0,46894.0,0.688144]
[1641193762382,0.0907061,46899.0,46895.0,0.02132545]
[1641193762783,0.0907061,46899.0,46896.0,0.317807]
[1641193763489,0.0907061,46899.0,46896.0,0.505807]
[1641193764384,0.0907061,46899.0,46896.0,0.188]
[1641193764784,0.0907061,46899.0,46895.0,0.02132545]
[1641193765386,0.0907061,46899.0,46896.0,0.32085]
[1641193767490,0.0907061,46899.0,46896.0,0.68885]
[1641193768499,1.51520907,46899.0,46896.0,0.50885]
[1641193768998,1.51520907,46899.0,46896.0,0.32085]
[1641193769194,1.42450297,46898.0,46896.0,0.32085]
[1641193769598,1.42450297,46898.0,46896.0,0.51385]
[1641193770796,1.42450297,46898.0,46896.0,0.32085]
[1641193771498,1.42450297,46898.0,46896.0,0.51485]
[1641193772397,1.42450297,46899.0,46896.0,0.51485]
[1641193772797,1.42450297,46899.0,46896.0,0.32085]
[1641193773097,0.0907061,46898.0,46896.0,0.32085]
[1641193773498,0.0907061,46898.0,46896.0,0.51485]
[1641193774799,0.0907061,46898.0,46896.0,0.32085]
[1641193775499,0.0907061,46898.0,46896.0,0.51385]
[1641193776402,1.51520907,46898.0,46896.0,0.51385]
[1641193776802,1.51520907,46898.0,46896.0,0.32085]
[1641193777503,1.51520907,46898.0,46896.0,0.51285]
[1641193777804,0.0907061,46897.0,46896.0,0.51285]
[1641193778205,1.51520907,46897.0,46896.0,0.51285]
[1641193779505,1.51520907,46897.0,46896.0,0.51385]
[1641193780908,1.51520907,46897.0,46896.0,0.32085]
[1641193781111,0.0907061,46897.0,46896.0,0.32181433]
[1641193781509,0.0907061,46897.0,46896.0,0.51581433]
[1641193782310,0.09070336,46901.0,46897.0,0.42104833]
[1641193782518,0.09070336,46901.0,46896.0,1.62885]
[1641193782708,0.09070336,46901.0,46898.0,0.315789]
[1641193782909,0.09070336,46901.0,46897.0,0.319856]
[1641193783409,0.09070336,46901.0,46899.0,0.321651]
[1641193783608,0.09070336,46901.0,46897.0,0.504672]
[1641193784210,0.14033567,46912.0,46897.0,0.504672]
[1641193784509,0.32033567,46912.0,46899.0,0.0213237]
[1641193784709,0.32033567,46912.0,46899.0,0.2013237]
[1641193784910,0.32033567,46912.0,46900.0,0.320786]
[1641193785610,0.32033567,46912.0,46900.0,0.487786]
[1641193786910,0.32033567,46912.0,46900.0,0.320786]
[1641193787210,0.32033567,46912.0,46906.0,0.42637688]
[1641193789913,0.32033567,46912.0,46907.0,0.42636728]
[1641193791715,0.14033567,46912.0,46907.0,0.43616128]
[1641193792014,1.6617,46915.0,46907.0,0.43616128]
[1641193792215,0.14033567,46916.0,46908.0,0.320182]
[1641193792415,0.14033567,46916.0,46912.0,0.42632499]
[1641193792614,0.14033567,46916.0,46913.0,0.009794]
[1641193793016,1.87442006,46925.0,46913.0,0.009794]
[1641193793214,1.6731,46925.0,46913.0,0.009794]
[1641193793416,1.68550989,46923.0,46913.0,0.03111154]
[1641193793616,1.82584556,46923.0,46917.0,0.42628216]
[1641193793816,1.82584556,46923.0,46918.0,0.009794]
[1641193794818,0.14033567,46923.0,46918.0,0.009794]
[1641193795016,0.14033567,46923.0,46917.0,0.42564708]
[1641193795319,0.32033567,46928.0,46916.0,0.0213161]
[1641193795320,0.14033567,46928.0,46916.0,0.0213161]
[1641193795519,0.12633567,46928.0,46918.0,0.14033567]
[1641193795718,1.68550989,46929.0,46919.0,0.009794]
[1641193795918,1.68550989,46929.0,46919.0,0.328193]
[1641193796117,1.68550989,46929.0,46920.0,3.22714833]
[1641193796317,1.68550989,46931.0,46920.0,3.22714833]
[1641193796517,1.68550989,46931.0,46921.0,0.320102]
[1641193796719,0.18,46929.0,46921.0,0.320102]
[1641193797621,0.18,46929.0,46928.0,0.14033567]
[1641193798518,0.0213161,46934.0,46928.0,0.14033567]
[1641193798719,0.18,46929.0,46928.0,0.14033567]
[1641193798918,0.09067133,46929.0,46928.0,0.14033567]
[1641193799119,0.27067133,46929.0,46928.0,0.14033567]
[1641193799619,0.09067133,46929.0,46928.0,0.14033567]
[1641193800621,0.27067133,46929.0,46928.0,0.14033567]
[1641193800820,0.27067133,46929.0,46927.0,0.42619016]
[1641193801020,0.27067133,46929.0,46919.0,0.009794]
[1641193801021,0.18,46929.0,46919.0,0.009794]
[1641193801219,0.18,46923.0,46919.0,0.009794]
[1641193801420,0.25462,46923.0,46919.0,0.009794]
[1641193802935,0.18,46920.0,46919.0,0.009794]
[1641193803137,0.25462,46923.0,46919.0,0.009794]
[1641193803335,0.07462,46923.0,46919.0,0.009794]
[1641193803536,0.24362,46923.0,46919.0,0.184794]
[1641193803939,0.24362,46923.0,46919.0,0.175]
[1641193804238,0.09067133,46922.0,46919.0,0.175]
[1641193805540,0.09067133,46922.0,46918.0,0.14033567]
[1641193805743,0.26367133,46922.0,46919.0,0.174]
[1641193806743,0.18,46921.0,46919.0,0.174]
[1641193806943,0.18,46921.0,46918.0,0.14033567]
[1641193807344,0.27067133,46921.0,46918.0,0.14033567]
[1641193807544,0.44967133,46921.0,46918.0,0.32233567]
[1641193808045,0.09067133,46920.0,46918.0,0.32233567]
[1641193809046,0.09067133,46920.0,46918.0,0.14033567]
[1641193809648,0.26667133,46920.0,46918.0,0.32533567]
[1641193810649,0.09067133,46919.0,46918.0,0.32533567]
[1641193811651,0.09067133,46919.0,46918.0,0.51633567]
[1641193812853,0.09067133,46919.0,46918.0,0.33133567]
[1641193813052,0.09067133,46919.0,46918.0,0.14033567]
[1641193813553,0.09067133,46919.0,46918.0,0.33133567]
[1641193814855,0.27067133,46922.0,46918.0,0.33133567]
[1641193815056,0.27067133,46922.0,46918.0,0.14033567]
[1641193815655,0.46167133,46922.0,46918.0,0.14033567]
[1641193816057,0.09067133,46921.0,46918.0,0.14033567]
[1641193817755,0.27867133,46921.0,46918.0,0.14033567]
[1641193818361,0.188,46921.0,46918.0,0.14033567]
[1641193818859,0.09067133,46920.0,46918.0,0.14033567]